[Event "*** Titled Tuesday Blitz"]
[Site "Chess.com"]
[Date "2020.05.05"]
[Round "9"]
[White "Quaternitychess"]
[Black "DLR7"]
[Result "0-1"]
[WhiteElo "2512"]
[BlackElo "2803"]
[TimeControl "180+1"]
[EndTime "11:45:56 PDT"]
[Termination "DLR7 won on time"]

1. e4 {[%clk 0:03:00.9]} 1... c5 {[%clk 0:02:58.4]} 2. Nf3 {[%clk 0:03:00.2]}
2... Nc6 {[%clk 0:02:57.4]} 3. d4 {[%clk 0:02:59.1]} 3... cxd4 {[%clk
0:02:57.1]} 4. Nxd4 {[%clk 0:03:00]} 4... e5 {[%clk 0:02:55.4]} 5. Nb5 {[%clk
0:02:59.3]} 5... a6 {[%clk 0:02:53.5]} 6. Nd6+ {[%clk 0:02:56.9]} 6... Bxd6
{[%clk 0:02:52.3]} 7. Qxd6 {[%clk 0:02:57.8]} 7... Qf6 {[%clk 0:02:51.7]} 8. Qd2
{[%clk 0:02:56.5]} 8... Qg6 {[%clk 0:02:47.2]} 9. Nc3 {[%clk 0:02:55.3]} 9...
Nf6 {[%clk 0:02:43.5]} 10. f3 {[%clk 0:02:48.2]} 10... d5 {[%clk 0:02:40.2]} 11.
Nxd5 {[%clk 0:02:47.1]} 11... Nxd5 {[%clk 0:02:37.1]} 12. exd5 {[%clk
0:02:46.9]} 12... Nd4 {[%clk 0:02:33.3]} 13. Bd3 {[%clk 0:02:46.1]} 13... Bf5
{[%clk 0:02:29.1]} 14. O-O {[%clk 0:01:37.9]} 14... Bxd3 {[%clk 0:02:22.8]} 15.
cxd3 {[%clk 0:01:37.5]} 15... O-O {[%clk 0:02:20]} 16. Qg5 {[%clk 0:00:58.8]}
16... Qxd3 {[%clk 0:02:13.7]} 17. Bd2 {[%clk 0:00:31.3]} 17... f6 {[%clk
0:02:08]} 18. Qe3 {[%clk 0:00:30.3]} 18... Qxe3+ {[%clk 0:02:08.4]} 19. Bxe3
{[%clk 0:00:30.5]} 19... Nc2 {[%clk 0:02:09.3]} 20. Bc5 {[%clk 0:00:28.5]} 20...
Rfc8 {[%clk 0:02:04.7]} 21. Bb6 {[%clk 0:00:28]} 21... Nxa1 {[%clk 0:02:01.8]}
22. Rxa1 {[%clk 0:00:28.9]} 22... Rc2 {[%clk 0:01:59.6]} 23. b4 {[%clk 0:00:26]}
23... Rac8 {[%clk 0:01:53.4]} 24. Bc5 {[%clk 0:00:21.5]} 24... Rd2 {[%clk
0:01:50.4]} 0-1

[Event "*** Titled Tuesday Blitz"]
[Site "Chess.com"]
[Date "2020.05.05"]
[Round "9"]
[White "Kaponov"]
[Black "GoValya"]
[Result "0-1"]
[WhiteElo "2052"]
[BlackElo "2163"]
[TimeControl "180+1"]
[EndTime "11:45:56 PDT"]
[Termination "GoValya won by resignation"]

1. e4 {[%clk 0:03:00.8]} 1... e6 {[%clk 0:02:59.6]} 2. d3 {[%clk 0:03:00.6]}
2... d5 {[%clk 0:02:59.3]} 3. exd5 {[%clk 0:02:59.8]} 3... exd5 {[%clk 0:02:59]}
4. g3 {[%clk 0:03:00.4]} 4... Nf6 {[%clk 0:02:58.5]} 5. Bg2 {[%clk 0:03:00.9]}
5... c5 {[%clk 0:02:58.7]} 6. Ne2 {[%clk 0:03:00.9]} 6... Be7 {[%clk 0:02:58.1]}
7. O-O {[%clk 0:03:01.4]} 7... O-O {[%clk 0:02:58.2]} 8. d4 {[%clk 0:02:53.1]}
8... Nc6 {[%clk 0:02:56.7]} 9. c3 {[%clk 0:02:53]} 9... a6 {[%clk 0:02:56.3]}
10. Bg5 {[%clk 0:02:50]} 10... h6 {[%clk 0:02:52.3]} 11. Bf4 {[%clk 0:02:47.6]}
11... Re8 {[%clk 0:02:50.3]} 12. h3 {[%clk 0:02:44.7]} 12... Bf8 {[%clk
0:02:48.7]} 13. Be3 {[%clk 0:02:38.6]} 13... Qb6 {[%clk 0:02:44.4]} 14. Qc2
{[%clk 0:02:28.4]} 14... Ne4 {[%clk 0:02:35.5]} 15. Nd2 {[%clk 0:02:23.6]} 15...
Bf5 {[%clk 0:02:26.7]} 16. Nxe4 {[%clk 0:02:23.7]} 16... Bxe4 {[%clk 0:02:24.7]}
17. Bxe4 {[%clk 0:02:23]} 17... Rxe4 {[%clk 0:02:24.3]} 18. dxc5 {[%clk
0:02:14.5]} 18... Bxc5 {[%clk 0:02:23.5]} 19. Bxc5 {[%clk 0:02:14.1]} 19... Qxc5
{[%clk 0:02:23.6]} 20. Rad1 {[%clk 0:02:12]} 20... Rae8 {[%clk 0:02:16.9]} 21.
Nf4 {[%clk 0:01:51.9]} 21... d4 {[%clk 0:02:16.5]} 22. Nd3 {[%clk 0:01:32.3]}
22... Qh5 {[%clk 0:02:15.7]} 23. Kg2 {[%clk 0:01:20.1]} 23... Re2 {[%clk
0:02:15.4]} 24. Qb3 {[%clk 0:01:14.1]} 24... Qf5 {[%clk 0:02:03.3]} 25. Nf4
{[%clk 0:01:09]} 25... Qe4+ {[%clk 0:02:01.6]} 26. Kg1 {[%clk 0:01:06.4]} 26...
Rc2 {[%clk 0:01:51]} 27. Rfe1 {[%clk 0:00:55.6]} 27... Qxe1+ {[%clk 0:01:49.8]}
28. Rxe1 {[%clk 0:00:55.7]} 28... Rxe1+ {[%clk 0:01:49.4]} 29. Kg2 {[%clk
0:00:56.2]} 29... Rcc1 {[%clk 0:01:49]} 30. cxd4 {[%clk 0:00:49.5]} 30... Rg1+
{[%clk 0:01:43.5]} 31. Kh2 {[%clk 0:00:41.5]} 31... Rh1+ {[%clk 0:01:43.4]} 32.
Kg2 {[%clk 0:00:42.1]} 32... Rcg1+ {[%clk 0:01:43.4]} 33. Kf3 {[%clk 0:00:42.1]}
33... Nxd4+ {[%clk 0:01:43.5]} 0-1

[Event "*** Titled Tuesday Blitz"]
[Site "Chess.com"]
[Date "2020.05.05"]
[Round "9"]
[White "youngKID"]
[Black "stoleriu"]
[Result "1-0"]
[WhiteElo "2779"]
[BlackElo "2560"]
[TimeControl "180+1"]
[EndTime "11:46:12 PDT"]
[Termination "youngKID won by resignation"]

1. Nf3 {[%clk 0:03:00.9]} 1... Nf6 {[%clk 0:03:00]} 2. b3 {[%clk 0:02:59.8]}
2... b6 {[%clk 0:02:57.7]} 3. g3 {[%clk 0:02:58.6]} 3... Bb7 {[%clk 0:02:58.1]}
4. Bg2 {[%clk 0:02:59.3]} 4... g6 {[%clk 0:02:58.6]} 5. Bb2 {[%clk 0:02:59.9]}
5... Bg7 {[%clk 0:02:59.2]} 6. O-O {[%clk 0:03:00.4]} 6... O-O {[%clk
0:02:59.8]} 7. c4 {[%clk 0:03:01.2]} 7... c5 {[%clk 0:02:59.7]} 8. d4 {[%clk
0:03:01.9]} 8... cxd4 {[%clk 0:02:59.5]} 9. Qxd4 {[%clk 0:03:02.8]} 9... Nc6
{[%clk 0:02:55.9]} 10. Qc3 {[%clk 0:02:58.2]} 10... Rc8 {[%clk 0:02:51.3]} 11.
Rd1 {[%clk 0:02:57.9]} 11... Qc7 {[%clk 0:02:50.8]} 12. Qe1 {[%clk 0:02:57.4]}
12... Rfd8 {[%clk 0:02:48.4]} 13. Nc3 {[%clk 0:02:57]} 13... d6 {[%clk
0:02:38.6]} 14. Rac1 {[%clk 0:02:54.4]} 14... a6 {[%clk 0:02:35.5]} 15. Nd5
{[%clk 0:02:33.1]} 15... Nxd5 {[%clk 0:02:23.1]} 16. cxd5 {[%clk 0:02:34]} 16...
Bxb2 {[%clk 0:02:20.1]} 17. dxc6 {[%clk 0:02:34.6]} 17... Bxc1 {[%clk
0:01:38.7]} 18. cxb7 {[%clk 0:02:33.1]} 18... Qxb7 {[%clk 0:01:39.6]} 19. Rxc1
{[%clk 0:02:33.2]} 19... Rxc1 {[%clk 0:01:40.5]} 20. Qxc1 {[%clk 0:02:32.9]}
20... Rc8 {[%clk 0:01:41.2]} 21. Qh6 {[%clk 0:02:29.5]} 21... f6 {[%clk
0:01:29.1]} 22. Qe3 {[%clk 0:02:16.9]} 22... Qc7 {[%clk 0:01:11.6]} 23. Qe6+
{[%clk 0:02:15.1]} 23... Kg7 {[%clk 0:01:10.7]} 24. h4 {[%clk 0:02:14.1]} 24...
Qc1+ {[%clk 0:00:53.9]} 25. Kh2 {[%clk 0:02:12.3]} 25... Rc7 {[%clk 0:00:54.7]}
26. Nd4 {[%clk 0:02:06.1]} 26... Qc5 {[%clk 0:00:45.9]} 27. e3 {[%clk
0:01:30.8]} 27... Kf8 {[%clk 0:00:17.9]} 28. Bd5 {[%clk 0:01:29]} 1-0

[Event "*** Titled Tuesday Blitz"]
[Site "Chess.com"]
[Date "2020.05.05"]
[Round "9"]
[White "Gulkov_Igor"]
[Black "VNeimer"]
[Result "1-0"]
[WhiteElo "2449"]
[BlackElo "2522"]
[TimeControl "180+1"]
[EndTime "11:46:14 PDT"]
[Termination "Gulkov_Igor won by resignation"]

1. Nf3 {[%clk 0:03:00.9]} 1... c5 {[%clk 0:02:59.3]} 2. c4 {[%clk 0:03:00.5]}
2... Nc6 {[%clk 0:02:59.4]} 3. d4 {[%clk 0:03:00.7]} 3... cxd4 {[%clk
0:03:00.3]} 4. Nxd4 {[%clk 0:03:01]} 4... g6 {[%clk 0:02:58.4]} 5. e4 {[%clk
0:03:01.1]} 5... Bg7 {[%clk 0:02:58.5]} 6. Be3 {[%clk 0:03:01.3]} 6... Qa5+
{[%clk 0:02:48.8]} 7. Nc3 {[%clk 0:03:00.5]} 7... Nf6 {[%clk 0:02:47.7]} 8. f3
{[%clk 0:03:00.1]} 8... O-O {[%clk 0:02:44.5]} 9. Nb3 {[%clk 0:02:59.3]} 9...
Qc7 {[%clk 0:02:43.2]} 10. Qd2 {[%clk 0:02:59.4]} 10... a6 {[%clk 0:02:41.5]}
11. Rc1 {[%clk 0:02:55.2]} 11... e6 {[%clk 0:02:37.6]} 12. c5 {[%clk 0:02:53.5]}
12... Na5 {[%clk 0:02:28.5]} 13. Nxa5 {[%clk 0:02:41.3]} 13... Qxa5 {[%clk
0:02:29.4]} 14. Be2 {[%clk 0:02:40.9]} 14... Rd8 {[%clk 0:02:20.1]} 15. e5
{[%clk 0:02:27.5]} 15... Ne8 {[%clk 0:02:10]} 16. f4 {[%clk 0:02:23.2]} 16... f6
{[%clk 0:02:09.6]} 17. exf6 {[%clk 0:02:20.6]} 17... Bxf6 {[%clk 0:02:10.5]} 18.
O-O {[%clk 0:02:02.4]} 18... d5 {[%clk 0:02:10.1]} 19. Bd4 {[%clk 0:01:36.6]}
19... Bd7 {[%clk 0:02:01.8]} 20. Bxf6 {[%clk 0:01:32.6]} 20... Nxf6 {[%clk
0:02:02.7]} 21. Qd4 {[%clk 0:01:32.7]} 21... Rf8 {[%clk 0:02:02.6]} 22. b4
{[%clk 0:01:27.9]} 22... Qc7 {[%clk 0:01:58.7]} 23. g3 {[%clk 0:01:24.6]} 23...
Rae8 {[%clk 0:01:56.8]} 24. Bf3 {[%clk 0:01:21.3]} 24... Bc6 {[%clk 0:01:52.7]}
25. Rfe1 {[%clk 0:01:19.1]} 25... Qg7 {[%clk 0:01:46.6]} 26. Rcd1 {[%clk
0:01:14.5]} 26... g5 {[%clk 0:01:39.2]} 27. fxg5 {[%clk 0:01:14.2]} 27... Qxg5
{[%clk 0:01:40.1]} 28. Re5 {[%clk 0:01:14.2]} 28... Qg6 {[%clk 0:01:36.3]} 29.
Qe3 {[%clk 0:01:08.9]} 29... h6 {[%clk 0:01:33.1]} 30. Rd4 {[%clk 0:01:05.9]}
30... Qc2 {[%clk 0:01:10]} 31. Qxh6 {[%clk 0:00:52.9]} 31... Nh7 {[%clk
0:01:05.2]} 32. Rg4+ {[%clk 0:00:50.2]} 1-0

[Event "*** Titled Tuesday Blitz"]
[Site "Chess.com"]
[Date "2020.05.05"]
[Round "9"]
[White "DaggiGretarsson"]
[Black "icychess54"]
[Result "1-0"]
[WhiteElo "2520"]
[BlackElo "2314"]
[TimeControl "180+1"]
[EndTime "11:46:15 PDT"]
[Termination "DaggiGretarsson won by resignation"]

1. d4 {[%clk 0:02:59.6]} 1... d5 {[%clk 0:02:59.8]} 2. c4 {[%clk 0:02:58.3]}
2... c6 {[%clk 0:02:59.3]} 3. Nc3 {[%clk 0:02:57]} 3... Nf6 {[%clk 0:02:59.6]}
4. e3 {[%clk 0:02:55.6]} 4... e6 {[%clk 0:03:00]} 5. g4 {[%clk 0:02:54.9]} 5...
Nbd7 {[%clk 0:02:52.7]} 6. g5 {[%clk 0:02:42.9]} 6... Ne4 {[%clk 0:02:52.2]} 7.
Nxe4 {[%clk 0:02:40.4]} 7... dxe4 {[%clk 0:02:52.2]} 8. Bg2 {[%clk 0:02:40.2]}
8... Qxg5 {[%clk 0:02:49.1]} 9. Bxe4 {[%clk 0:02:39.1]} 9... e5 {[%clk
0:02:33.5]} 10. Nf3 {[%clk 0:02:23.4]} 10... Bb4+ {[%clk 0:02:28.1]} 11. Bd2
{[%clk 0:02:08.1]} 11... Bxd2+ {[%clk 0:02:26.9]} 12. Qxd2 {[%clk 0:02:07.4]}
12... Qg4 {[%clk 0:02:11.8]} 13. Qd3 {[%clk 0:01:58.4]} 13... Nf6 {[%clk
0:02:08.6]} 14. Nd2 {[%clk 0:01:56.9]} 14... Nxe4 {[%clk 0:01:58.5]} 15. Qxe4
{[%clk 0:01:52.9]} 15... Qxe4 {[%clk 0:01:53.7]} 16. Nxe4 {[%clk 0:01:52.8]}
16... exd4 {[%clk 0:01:52.3]} 17. exd4 {[%clk 0:01:52.3]} 17... O-O {[%clk
0:01:48.7]} 18. Kd2 {[%clk 0:01:33.1]} 18... Be6 {[%clk 0:01:38.9]} 19. Nd6
{[%clk 0:01:30.2]} 19... b6 {[%clk 0:01:20.1]} 20. Kc3 {[%clk 0:01:23.9]} 20...
Rfd8 {[%clk 0:01:14.7]} 21. c5 {[%clk 0:01:22.9]} 21... bxc5 {[%clk 0:01:07.9]}
22. dxc5 {[%clk 0:01:22.5]} 22... Rab8 {[%clk 0:01:08.4]} 23. b4 {[%clk
0:01:14.5]} 23... a5 {[%clk 0:01:00.6]} 24. bxa5 {[%clk 0:01:11.4]} 24... Ra8
{[%clk 0:00:59.8]} 25. a4 {[%clk 0:01:05.8]} 25... Rxa5 {[%clk 0:00:57.9]} 26.
Nb7 {[%clk 0:01:04.5]} 1-0

[Event "*** Titled Tuesday Blitz"]
[Site "Chess.com"]
[Date "2020.05.05"]
[Round "9"]
[White "Savagelittlemole"]
[Black "TheFireChess"]
[Result "1-0"]
[WhiteElo "2577"]
[BlackElo "2452"]
[TimeControl "180+1"]
[EndTime "11:46:20 PDT"]
[Termination "Savagelittlemole won by resignation"]

1. e4 {[%clk 0:03:00.9]} 1... c6 {[%clk 0:02:58.5]} 2. d4 {[%clk 0:03:00.3]}
2... d5 {[%clk 0:02:59.4]} 3. e5 {[%clk 0:02:59.5]} 3... c5 {[%clk 0:02:59.3]}
4. dxc5 {[%clk 0:02:59.4]} 4... Nc6 {[%clk 0:02:41.9]} 5. Bb5 {[%clk 0:02:58.1]}
5... a6 {[%clk 0:02:40.3]} 6. Bxc6+ {[%clk 0:02:56.9]} 6... bxc6 {[%clk
0:02:41.2]} 7. c3 {[%clk 0:02:50.8]} 7... a5 {[%clk 0:02:37.9]} 8. Be3 {[%clk
0:02:44.7]} 8... Nh6 {[%clk 0:02:36.2]} 9. Bxh6 {[%clk 0:02:40.5]} 9... gxh6
{[%clk 0:02:37.1]} 10. Nf3 {[%clk 0:02:37.6]} 10... Rg8 {[%clk 0:02:36.8]} 11.
Nbd2 {[%clk 0:02:16.8]} 11... Rxg2 {[%clk 0:02:34.1]} 12. Qc2 {[%clk 0:02:17.1]}
12... Rg6 {[%clk 0:02:27]} 13. O-O-O {[%clk 0:02:11.4]} 13... e6 {[%clk
0:02:26.7]} 14. Ne4 {[%clk 0:02:03.7]} 14... Be7 {[%clk 0:01:50.4]} 15. Nd6+
{[%clk 0:02:02.2]} 15... Kf8 {[%clk 0:01:50.2]} 16. Kb1 {[%clk 0:01:59.4]} 16...
a4 {[%clk 0:01:49.7]} 17. Rhg1 {[%clk 0:01:55.4]} 17... a3 {[%clk 0:01:46.2]}
18. b3 {[%clk 0:01:53]} 18... Ba6 {[%clk 0:01:41.6]} 19. Nd4 {[%clk 0:01:45.2]}
19... Rc8 {[%clk 0:01:30.2]} 20. Rxg6 {[%clk 0:01:37.5]} 20... hxg6 {[%clk
0:01:28.4]} 21. Rg1 {[%clk 0:01:33.2]} 21... Bxd6 {[%clk 0:01:23.9]} 22. exd6
{[%clk 0:01:29.3]} 22... Qh4 {[%clk 0:01:18]} 23. Qd2 {[%clk 0:01:18.5]} 23...
Qxh2 {[%clk 0:01:03.4]} 24. Re1 {[%clk 0:01:15.9]} 24... Kg7 {[%clk 0:00:57.1]}
25. Qe3 {[%clk 0:01:13.6]} 25... Re8 {[%clk 0:00:40.1]} 26. Nxc6 {[%clk
0:01:11.2]} 26... Bc8 {[%clk 0:00:35.9]} 27. Qe5+ {[%clk 0:01:06.7]} 27... f6
{[%clk 0:00:31.9]} 28. Qxh2 {[%clk 0:01:05.9]} 1-0

[Event "*** Titled Tuesday Blitz"]
[Site "Chess.com"]
[Date "2020.05.05"]
[Round "9"]
[White "Leonid_Starozhilov"]
[Black "RestartingChess"]
[Result "1-0"]
[WhiteElo "2649"]
[BlackElo "2509"]
[TimeControl "180+1"]
[EndTime "11:46:23 PDT"]
[Termination "Leonid_Starozhilov won by checkmate"]

1. b3 {[%clk 0:03:00.9]} 1... Nf6 {[%clk 0:03:00.2]} 2. Bb2 {[%clk 0:03:01.2]}
2... g6 {[%clk 0:03:00.8]} 3. c4 {[%clk 0:03:01.3]} 3... Bg7 {[%clk 0:03:01.3]}
4. g3 {[%clk 0:03:01.7]} 4... O-O {[%clk 0:03:01.8]} 5. Bg2 {[%clk 0:03:02.2]}
5... d5 {[%clk 0:03:02.5]} 6. cxd5 {[%clk 0:03:02.1]} 6... Nxd5 {[%clk
0:03:02.4]} 7. Bxg7 {[%clk 0:03:02.4]} 7... Kxg7 {[%clk 0:03:03.3]} 8. h4 {[%clk
0:02:58.4]} 8... h5 {[%clk 0:03:03.1]} 9. Nf3 {[%clk 0:02:58.2]} 9... Nc6 {[%clk
0:03:03]} 10. Qc1 {[%clk 0:02:56.8]} 10... Bg4 {[%clk 0:03:02]} 11. Nc3 {[%clk
0:02:52.6]} 11... a6 {[%clk 0:02:52.1]} 12. O-O {[%clk 0:02:45.7]} 12... Nf6
{[%clk 0:02:50.4]} 13. Qb2 {[%clk 0:02:21]} 13... e5 {[%clk 0:02:49.6]} 14. Ng5
{[%clk 0:02:12.5]} 14... Qd7 {[%clk 0:02:30.4]} 15. d3 {[%clk 0:02:05.9]} 15...
Rae8 {[%clk 0:02:22.1]} 16. Rac1 {[%clk 0:02:02.4]} 16... Nh7 {[%clk 0:02:05.1]}
17. Nce4 {[%clk 0:01:53.9]} 17... Nd4 {[%clk 0:01:57.4]} 18. Nxh7 {[%clk
0:01:46.7]} 18... Nxe2+ {[%clk 0:01:48.9]} 19. Kh2 {[%clk 0:01:45.3]} 19... Nxc1
{[%clk 0:01:48.3]} 20. Rxc1 {[%clk 0:01:20.2]} 20... Rh8 {[%clk 0:01:38]} 21.
Nhf6 {[%clk 0:01:19.5]} 21... Qxd3 {[%clk 0:01:35.3]} 22. Nxe8+ {[%clk 0:01:06]}
22... Rxe8 {[%clk 0:01:36.2]} 23. Rxc7 {[%clk 0:01:06.3]} 23... Be6 {[%clk
0:01:15.9]} 24. Ng5 {[%clk 0:00:58.9]} 24... Kf6 {[%clk 0:01:16.2]} 25. Rxb7
{[%clk 0:00:50.8]} 25... Rc8 {[%clk 0:01:14.5]} 26. Qa3 {[%clk 0:00:43]} 26...
Rc2 {[%clk 0:00:59.8]} 27. Qe7+ {[%clk 0:00:41.8]} 27... Kf5 {[%clk 0:00:53.8]}
28. Bh3# {[%clk 0:00:33.5]} 1-0

[Event "*** Titled Tuesday Blitz"]
[Site "Chess.com"]
[Date "2020.05.05"]
[Round "9"]
[White "ItsCheckM8Mate"]
[Black "Lion-Al-Messi"]
[Result "0-1"]
[WhiteElo "2266"]
[BlackElo "2429"]
[TimeControl "180+1"]
[EndTime "11:46:29 PDT"]
[Termination "Lion-Al-Messi won by resignation"]

1. e4 {[%clk 0:03:00.9]} 1... b6 {[%clk 0:02:55.3]} 2. d4 {[%clk 0:03:00.6]}
2... Bb7 {[%clk 0:02:53]} 3. Nc3 {[%clk 0:03:00.6]} 3... e6 {[%clk 0:02:51.8]}
4. a3 {[%clk 0:03:00.6]} 4... Nf6 {[%clk 0:02:49.8]} 5. Bd3 {[%clk 0:02:59.7]}
5... d5 {[%clk 0:02:46.2]} 6. exd5 {[%clk 0:02:55.2]} 6... exd5 {[%clk
0:02:44.7]} 7. Nf3 {[%clk 0:02:55]} 7... Bd6 {[%clk 0:02:44.7]} 8. O-O {[%clk
0:02:54.7]} 8... O-O {[%clk 0:02:44.5]} 9. Re1 {[%clk 0:02:38.2]} 9... Nc6
{[%clk 0:02:39]} 10. Bg5 {[%clk 0:02:33.8]} 10... h6 {[%clk 0:02:38.1]} 11. Bxf6
{[%clk 0:02:30]} 11... Qxf6 {[%clk 0:02:37.8]} 12. Nxd5 {[%clk 0:02:30.1]} 12...
Qd8 {[%clk 0:02:37.3]} 13. Ne3 {[%clk 0:02:24.7]} 13... Ne7 {[%clk 0:02:28]} 14.
c3 {[%clk 0:02:18.6]} 14... c5 {[%clk 0:02:24.3]} 15. Bc2 {[%clk 0:02:09.3]}
15... Qc7 {[%clk 0:02:20.3]} 16. Qd3 {[%clk 0:02:07.6]} 16... Ng6 {[%clk
0:02:19.2]} 17. dxc5 {[%clk 0:02:00.7]} 17... Bxc5 {[%clk 0:02:16.2]} 18. Qf5
{[%clk 0:01:58]} 18... Rad8 {[%clk 0:02:11.8]} 19. Bb3 {[%clk 0:01:32.2]} 19...
Kh8 {[%clk 0:02:08.7]} 20. Rad1 {[%clk 0:01:29]} 20... Nf4 {[%clk 0:01:54.6]}
21. Bc2 {[%clk 0:01:24.3]} 21... g6 {[%clk 0:01:47.2]} 22. Qf6+ {[%clk
0:01:19.4]} 22... Kg8 {[%clk 0:01:47.4]} 23. Rxd8 {[%clk 0:00:47.9]} 23... Rxd8
{[%clk 0:01:45.2]} 24. Ne5 {[%clk 0:00:48]} 24... Bxe3 {[%clk 0:01:35.2]} 25.
fxe3 {[%clk 0:00:47.7]} 25... Rd2 {[%clk 0:01:13.6]} 26. exf4 {[%clk 0:00:22.6]}
26... Qc5+ {[%clk 0:01:12.5]} 0-1

[Event "*** Titled Tuesday Blitz"]
[Site "Chess.com"]
[Date "2020.05.05"]
[Round "9"]
[White "RaunakSadhwani2005"]
[Black "Lubov_Gordyk"]
[Result "1-0"]
[WhiteElo "2863"]
[BlackElo "2634"]
[TimeControl "180+1"]
[EndTime "11:46:33 PDT"]
[Termination "RaunakSadhwani2005 won by resignation"]

1. e4 {[%clk 0:03:00.9]} 1... g6 {[%clk 0:02:59.7]} 2. d4 {[%clk 0:03:00]} 2...
Bg7 {[%clk 0:02:59.7]} 3. Nf3 {[%clk 0:03:00.5]} 3... d6 {[%clk 0:02:59.9]} 4.
Bc4 {[%clk 0:03:00.9]} 4... e6 {[%clk 0:02:59.6]} 5. O-O {[%clk 0:03:00.2]} 5...
Ne7 {[%clk 0:02:59.5]} 6. Bb3 {[%clk 0:03:00.4]} 6... h6 {[%clk 0:02:59.4]} 7.
Qe2 {[%clk 0:03:00.5]} 7... a6 {[%clk 0:02:59.4]} 8. c4 {[%clk 0:02:59.3]} 8...
Nd7 {[%clk 0:02:59.6]} 9. Nc3 {[%clk 0:02:59.3]} 9... b6 {[%clk 0:02:57]} 10.
Bc2 {[%clk 0:02:58.8]} 10... Bb7 {[%clk 0:02:56.7]} 11. h4 {[%clk 0:02:55.5]}
11... e5 {[%clk 0:02:44]} 12. dxe5 {[%clk 0:02:49.4]} 12... Nxe5 {[%clk
0:02:39.2]} 13. Nxe5 {[%clk 0:02:49.4]} 13... Bxe5 {[%clk 0:02:39.1]} 14. f4
{[%clk 0:02:49]} 14... Bd4+ {[%clk 0:02:35.9]} 15. Be3 {[%clk 0:02:48.4]} 15...
Bxe3+ {[%clk 0:02:32.8]} 16. Qxe3 {[%clk 0:02:49.3]} 16... Qd7 {[%clk
0:02:25.4]} 17. b4 {[%clk 0:02:40.6]} 17... Qg4 {[%clk 0:02:10.4]} 18. Qf2
{[%clk 0:02:30.3]} 18... O-O {[%clk 0:01:55.6]} 19. Rae1 {[%clk 0:02:22.5]}
19... Rae8 {[%clk 0:01:52.2]} 20. Re3 {[%clk 0:02:21.1]} 20... Qe6 {[%clk
0:01:50.4]} 21. f5 {[%clk 0:02:16.8]} 21... Qe5 {[%clk 0:01:48.8]} 22. Bb3
{[%clk 0:02:12.5]} 22... Nxf5 {[%clk 0:01:39.3]} 23. Rf3 {[%clk 0:02:12.5]}
23... Bxe4 {[%clk 0:01:25.8]} 24. Re1 {[%clk 0:02:12.1]} 24... Qd4 {[%clk
0:01:14.5]} 25. Qxd4 {[%clk 0:02:06.3]} 25... Nxd4 {[%clk 0:01:14.3]} 26. Nxe4
{[%clk 0:02:05]} 26... Nxf3+ {[%clk 0:01:12.3]} 27. gxf3 {[%clk 0:02:05.9]}
27... Kg7 {[%clk 0:01:11.6]} 28. Kf2 {[%clk 0:02:04.7]} 28... f5 {[%clk
0:01:10.7]} 29. Nc3 {[%clk 0:02:05.1]} 29... Rxe1 {[%clk 0:01:10.5]} 30. Kxe1
{[%clk 0:02:06]} 30... c6 {[%clk 0:01:10.3]} 31. Kf2 {[%clk 0:02:03.8]} 31...
Kf6 {[%clk 0:01:10.2]} 32. a4 {[%clk 0:02:00.5]} 32... Ke5 {[%clk 0:01:08.1]}
33. Ne2 {[%clk 0:01:59.5]} 33... f4 {[%clk 0:01:07.2]} 34. Bc2 {[%clk
0:01:58.8]} 34... g5 {[%clk 0:01:07.4]} 35. h5 {[%clk 0:01:59.1]} 35... d5
{[%clk 0:01:05.7]} 36. cxd5 {[%clk 0:01:57.2]} 36... cxd5 {[%clk 0:01:06]} 37.
Bd3 {[%clk 0:01:55.5]} 37... a5 {[%clk 0:01:05.2]} 38. bxa5 {[%clk 0:01:55.5]}
38... bxa5 {[%clk 0:01:05.4]} 39. Ke1 {[%clk 0:01:55.8]} 39... Rb8 {[%clk
0:01:03]} 40. Bb5 {[%clk 0:01:55.3]} 40... Rc8 {[%clk 0:01:01.4]} 41. Kd2 {[%clk
0:01:55.1]} 41... g4 {[%clk 0:00:59.8]} 42. fxg4 {[%clk 0:01:50.5]} 42... f3
{[%clk 0:00:59.8]} 43. Nc1 {[%clk 0:01:48.3]} 43... Kf4 {[%clk 0:00:55.6]} 44.
Nd3+ {[%clk 0:01:48.8]} 44... Kxg4 {[%clk 0:00:54.5]} 45. Bd7+ {[%clk
0:01:47.9]} 45... Kxh5 {[%clk 0:00:48.1]} 46. Bxc8 {[%clk 0:01:46.6]} 46... Kh4
{[%clk 0:00:45.8]} 47. Bb7 {[%clk 0:01:43]} 47... Kg3 {[%clk 0:00:43.8]} 48.
Bxd5 {[%clk 0:01:41.9]} 48... h5 {[%clk 0:00:44.4]} 49. Ke3 {[%clk 0:01:41.8]}
1-0

[Event "*** Titled Tuesday Blitz"]
[Site "Chess.com"]
[Date "2020.05.05"]
[Round "9"]
[White "francyIM"]
[Black "TudorAnton"]
[Result "1-0"]
[WhiteElo "2637"]
[BlackElo "2494"]
[TimeControl "180+1"]
[EndTime "11:46:41 PDT"]
[Termination "francyIM won by resignation"]

1. d4 {[%clk 0:03:00.9]} 1... Nf6 {[%clk 0:02:59.4]} 2. c4 {[%clk 0:03:00.2]}
2... e6 {[%clk 0:03:00]} 3. Nc3 {[%clk 0:02:58.6]} 3... Bb4 {[%clk 0:03:00.5]}
4. g3 {[%clk 0:02:58.5]} 4... c5 {[%clk 0:03:00.5]} 5. Nf3 {[%clk 0:02:58]} 5...
Qb6 {[%clk 0:02:59.4]} 6. Bg2 {[%clk 0:02:53.1]} 6... cxd4 {[%clk 0:02:58.7]} 7.
Nxd4 {[%clk 0:02:52.6]} 7... Nc6 {[%clk 0:02:57.7]} 8. Nb5 {[%clk 0:02:51.1]}
8... O-O {[%clk 0:02:56.2]} 9. O-O {[%clk 0:02:49.2]} 9... a6 {[%clk 0:02:55.9]}
10. Be3 {[%clk 0:02:47.4]} 10... Qd8 {[%clk 0:02:55.3]} 11. Nd6 {[%clk
0:02:47.6]} 11... Qe7 {[%clk 0:02:47.5]} 12. Nde4 {[%clk 0:02:43.5]} 12... Nxe4
{[%clk 0:02:45.9]} 13. Nxe4 {[%clk 0:02:44.4]} 13... f5 {[%clk 0:02:39.5]} 14.
Bg5 {[%clk 0:02:43.1]} 14... Qf7 {[%clk 0:02:38.6]} 15. Nd6 {[%clk 0:02:43.2]}
15... Qg6 {[%clk 0:02:35.5]} 16. Be3 {[%clk 0:02:40.7]} 16... e5 {[%clk
0:02:21.6]} 17. Qd5+ {[%clk 0:02:38.7]} 17... Kh8 {[%clk 0:02:11.8]} 18. c5
{[%clk 0:02:37.1]} 18... f4 {[%clk 0:01:54.7]} 19. a3 {[%clk 0:02:36.1]} 19...
Ba5 {[%clk 0:01:51.5]} 20. b4 {[%clk 0:02:34.1]} 20... Bc7 {[%clk 0:01:50.7]}
21. Bd2 {[%clk 0:02:32.6]} 21... Bxd6 {[%clk 0:01:49.8]} 22. cxd6 {[%clk
0:02:31.5]} 22... b5 {[%clk 0:01:45.8]} 23. Bc3 {[%clk 0:02:29.5]} 23... Bb7
{[%clk 0:01:43.9]} 24. Bxe5 {[%clk 0:02:27.7]} 24... Nxe5 {[%clk 0:01:43.4]} 25.
Qxb7 {[%clk 0:02:25.8]} 25... Qxd6 {[%clk 0:01:37.6]} 26. Rad1 {[%clk
0:02:24.1]} 26... Qf6 {[%clk 0:01:35.5]} 27. Rd5 {[%clk 0:02:15.9]} 27... Rac8
{[%clk 0:01:27.4]} 28. Rd4 {[%clk 0:01:51.6]} 28... fxg3 {[%clk 0:01:16.4]} 29.
hxg3 {[%clk 0:01:52.4]} 29... Nf3+ {[%clk 0:01:11.4]} 30. Bxf3 {[%clk
0:01:51.5]} 30... Qxd4 {[%clk 0:01:12]} 31. Qxa6 {[%clk 0:01:51.6]} 31... Qe5
{[%clk 0:01:07]} 32. Rd1 {[%clk 0:01:49.2]} 32... Rc7 {[%clk 0:00:56.4]} 33. Kg2
{[%clk 0:01:47.8]} 33... h6 {[%clk 0:00:54.4]} 34. Rd5 {[%clk 0:01:47.6]} 34...
Qb2 {[%clk 0:00:46.7]} 35. Rxb5 {[%clk 0:01:46.1]} 35... Rc2 {[%clk 0:00:41.1]}
36. Rb7 {[%clk 0:01:30.9]} 36... Rxf3 {[%clk 0:00:36.4]} 37. Kxf3 {[%clk
0:01:30.6]} 37... Qb3+ {[%clk 0:00:23.5]} 38. Qd3 {[%clk 0:01:20.9]} 38... Rc3
{[%clk 0:00:22.6]} 39. Rb8+ {[%clk 0:01:20.7]} 1-0